{"text_format":"1","workbook":"xlsx","n_sheets":4,"sheets":["Сентябрь","контроль выполнения графика","Лист1","Лист2"],"not_rendered":{"charts":0,"images":2,"macros":1,"external_links":0,"defined_names":12,"comments":0,"pivot_tables":0},"unopened":[],"bounds":{"document_bytes":16777216,"sheet_cells":100000,"rows_first":2000,"rows_last":500,"rows_between":2000,"halvings":0,"cell_chars":16384,"cell_head_chars":4096},"cells_cut":0,"cells_raw":0,"read":"whole","date_system":"1900"}

{"sheet":"Сентябрь","index":0,"n_rows":34,"n_cols":44,"rows_kept":34,"cut":false,"hidden":false,"merged":[]}
[{"$f":"'контроль выполнения графика'!$M$9","v":"Сентябрь"}]
[]
[]
[]
[]
[null,null,null,null,null,null,"УТВЕРЖДАЮ"]
[null,null,null,null,null,null,"Генеральный директор OАО \"ПФ \"КМТ\""]
[null,null,{"$f":"\" План-график производства \"&TEXT($AE$10,\"ММММ ГГГГ\")&\"г.\"","v":" План-график производства Сентябрь 2017г."},null,null,null,"_________________Новоселов К.Н."]
[null,null,"С доп заказами по № 66 включительно",null,null,null,"\"___\" ________________2017 г."]
[null,"№ заказа","Обозначение","Наименование",null,{"$f":"\"Долг \"&TEXT(EOMONTH($X$10,-1),\"ММММ\")","v":"Долг Август"},"доп   (+)","доп   (-)",{"$f":"TEXT(EOMONTH($X$10,0),\"ММММ\")","v":"Сентябрь"},"Итого по плану","Проверка",null,null,null,{"$f":"'контроль выполнения графика'!O10","v":"2017-08-28"},{"$f":"'контроль выполнения графика'!P10","v":"2017-08-29"},{"$f":"'контроль выполнения графика'!Q10","v":"2017-08-30"},{"$f":"'контроль выполнения графика'!R10","v":"2017-08-31"},{"$f":"'контроль выполнения графика'!S10","v":"2017-09-01"},{"$f":"'контроль выполнения графика'!T10","v":"2017-09-04"},{"$f":"'контроль выполнения графика'!U10","v":"2017-09-05"},{"$f":"'контроль выполнения графика'!V10","v":"2017-09-06"},{"$f":"'контроль выполнения графика'!W10","v":"2017-09-07"},{"$f":"'контроль выполнения графика'!X10","v":"2017-09-08"},{"$f":"'контроль выполнения графика'!Y10","v":"2017-09-11"},{"$f":"'контроль выполнения графика'!Z10","v":"2017-09-12"},{"$f":"'контроль выполнения графика'!AA10","v":"2017-09-13"},{"$f":"'контроль выполнения графика'!AB10","v":"2017-09-14"},{"$f":"'контроль выполнения графика'!AC10","v":"2017-09-15"},{"$f":"'контроль выполнения графика'!AD10","v":"2017-09-18"},{"$f":"'контроль выполнения графика'!AE10","v":"2017-09-19"},{"$f":"'контроль выполнения графика'!AF10","v":"2017-09-20"},{"$f":"'контроль выполнения графика'!AG10","v":"2017-09-21"},{"$f":"'контроль выполнения графика'!AH10","v":"2017-09-22"},{"$f":"'контроль выполнения графика'!AI10","v":"2017-09-25"},{"$f":"'контроль выполнения графика'!AJ10","v":"2017-09-26"},{"$f":"'контроль выполнения графика'!AK10","v":"2017-09-27"},{"$f":"'контроль выполнения графика'!AL10","v":"2017-09-28"},{"$f":"'контроль выполнения графика'!AM10","v":"2017-09-29"},{"$f":"'контроль выполнения графика'!AN10","v":"2017-10-02"},{"$f":"'контроль выполнения графика'!AO10","v":"2017-10-03"},{"$f":"'контроль выполнения графика'!AP10","v":"2017-10-04"},{"$f":"'контроль выполнения графика'!AQ10","v":"2017-10-05"},{"$f":"\"Предварительный план \"&TEXT(EOMONTH($AC$10,1),\"ММММ\")","v":"Предварительный план Октябрь"}]
["п83922","ОО8","ФКГП 185.00.00.000","К-т подвесок для вагона модели 61-4440",null,null,null,null,null,{"$f":"SUM(F11:I11)","v":0},{"$f":"SUM(O11:AP11)","v":5},null,null,null,null,null,null,5]
[null,"ОО8","ФКГП 282.01.00.000","Подвеска",1,null,null,null,null,{"$f":"SUM(F12:I12)","v":0},{"$f":"SUM(O12:AP12)","v":0}]
[null,"ОО8","ФКГП 301.01.00.000","Подвеска",8,null,null,null,null,0,3,null,null,null,null,null,null,3]
[null,"ОО8","ФКГП 312.01.00.000","Подвеска",1,null,null,null,null,0,0]
[null,"ОО8","ФКГП 356.01.00.000","Подвеска",2,null,null,null,null,0,2,null,null,null,null,null,null,2]
["п84549","ОО8","ФКГП 185.00.00.000-02","К-т подвесок для вагона модели 61-4445.01",null,null,null,null,null,0,0]
[null,"ОО8","ФКГП 282.01.00.000","Подвеска",1,null,null,null,null,0,0]
["п81393","ОО8","ФКГП 301.01.00.000","Подвеска",6,null,null,null,null,0,0]
[null,"ОО8","ФКГП 331.01.00.000","Подвеска",1,null,null,null,null,0,0]
[null,"ОО8","ФКГП 332.01.00.000","Подвеска",1,null,null,null,null,0,0]
[null,"ОО8","ФКГП 333.01.00.000","Подвеска",1,null,null,null,null,0,0]
[null,"ОО8","ФКГП 334.01.00.000","Подвеска",1,null,null,null,null,0,0]
[null,"ОО8","ФКГП 335.01.00.000","Подвеска",1,null,null,null,null,0,0]
["п84099","ОО8","ФКГП 185.00.00.000-03","К-т подвесок для вагона модели 61-4447.05",null,null,null,null,null,0,0]
[null,"ОО8","ФКГП 282.01.00.000","Подвеска",1,null,null,null,null,0,0]
[null,"ОО8","ФКГП 334.01.00.000","Подвеска",1,null,null,null,null,0,0]
[null,"ОО8","ФКГП 335.01.00.000","Подвеска",1,null,null,null,null,0,0]
["п83969","ОО8","ФКГП 185.00.00.000-05","К-т подвесок для вагона модели 61-4465",null,null,null,null,null,{"$f":"SUM(F28:I28)","v":0},{"$f":"SUM(O28:AP28)","v":0}]
["п81393","ОО8","ФКГП 301.01.00.000","Подвеска",14,null,null,null,null,0,0]
[null,"ОО8","ФКГП 336.01.00.000-01","Подвеска",1,null,null,null,null,0,0]
[null,"ОО8","ФКГП 355.01.00.000","Подвеска",2,null,null,null,null,0,0]
[null,"ОО8","ФКГП 464.01.00.000","Подвеска",1,null,null,null,null,0,0]
["п83967","ОО8","ФКГП 185.00.00.000-07","К-т подвесок для вагона модели 61-4472",null,null,null,null,null,0,0]
["п81393","ОО8","ФКГП 301.01.00.000","Подвеска",11,null,null,null,null,0,0]

{"sheet":"контроль выполнения графика","index":1,"n_rows":34,"n_cols":43,"rows_kept":34,"cut":false,"hidden":false,"merged":[[8,5,8,8],[4,15,4,42],[4,0,4,1],[5,0,5,1],[6,0,6,1],[7,0,7,1]]}
[]
[null,null,null,null,null,null,null,null,null,null,null,null,null,null,null,null,"Пароль для снятия защиты "]
[null,null,null,null,null,null,null,null,null,null,null,null,null,null,null,null,1111]
[]
[]
[]
[]
[]
[null,null,null,null,null,"2017-09-01",null,null,null,null,null,1,{"$f":"TEXT($F$9,\"ММММ\")","v":"Сентябрь"},{"$f":"TEXT($F$9,\"ГГГГ\")","v":"2017"}]
[null,"Цех","Обозначение","Наименование",null,{"$f":"\"Долг \"&UPPER(TEXT(EOMONTH($F$9,-1),\"ММММ\"))","v":"Долг АВГУСТ"},"доп   (+)","доп   (-)",{"$f":"TEXT(EOMONTH($Y$10,0),\"ММММ\")","v":"Сентябрь"},"Итого по заказу","Проверка","План на дату","Сдано  на дату","Отклонения на дату",{"$f":"$F$9+MOD(2-$F$9,7)-7","v":"2017-08-28"},{"$f":"WORKDAY(O10,1,Лист1!$A$1:$A$28)","v":"2017-08-29"},{"$f":"WORKDAY(P10,1,Лист1!$A$1:$A$28)","v":"2017-08-30"},{"$f":"WORKDAY(Q10,1,Лист1!$A$1:$A$28)","v":"2017-08-31"},{"$f":"WORKDAY(R10,1,Лист1!$A$1:$A$28)","v":"2017-09-01"},{"$f":"WORKDAY(S10,1,Лист1!$A$1:$A$28)","v":"2017-09-04"},{"$f":"WORKDAY(T10,1,Лист1!$A$1:$A$28)","v":"2017-09-05"},{"$f":"WORKDAY(U10,1,Лист1!$A$1:$A$28)","v":"2017-09-06"},{"$f":"WORKDAY(V10,1,Лист1!$A$1:$A$28)","v":"2017-09-07"},{"$f":"WORKDAY(W10,1,Лист1!$A$1:$A$28)","v":"2017-09-08"},{"$f":"WORKDAY(X10,1,Лист1!$A$1:$A$28)","v":"2017-09-11"},{"$f":"WORKDAY(Y10,1,Лист1!$A$1:$A$28)","v":"2017-09-12"},{"$f":"WORKDAY(Z10,1,Лист1!$A$1:$A$28)","v":"2017-09-13"},{"$f":"WORKDAY(AA10,1,Лист1!$A$1:$A$28)","v":"2017-09-14"},{"$f":"WORKDAY(AB10,1,Лист1!$A$1:$A$28)","v":"2017-09-15"},{"$f":"WORKDAY(AC10,1,Лист1!$A$1:$A$28)","v":"2017-09-18"},{"$f":"WORKDAY(AD10,1,Лист1!$A$1:$A$28)","v":"2017-09-19"},{"$f":"WORKDAY(AE10,1,Лист1!$A$1:$A$28)","v":"2017-09-20"},{"$f":"WORKDAY(AF10,1,Лист1!$A$1:$A$28)","v":"2017-09-21"},{"$f":"WORKDAY(AG10,1,Лист1!$A$1:$A$28)","v":"2017-09-22"},{"$f":"WORKDAY(AH10,1,Лист1!$A$1:$A$28)","v":"2017-09-25"},{"$f":"WORKDAY(AI10,1,Лист1!$A$1:$A$28)","v":"2017-09-26"},{"$f":"WORKDAY(AJ10,1,Лист1!$A$1:$A$28)","v":"2017-09-27"},{"$f":"WORKDAY(AK10,1,Лист1!$A$1:$A$28)","v":"2017-09-28"},{"$f":"WORKDAY(AL10,1,Лист1!$A$1:$A$28)","v":"2017-09-29"},{"$f":"WORKDAY(AM10,1,Лист1!$A$1:$A$28)","v":"2017-10-02"},{"$f":"WORKDAY(AN10,1,Лист1!$A$1:$A$28)","v":"2017-10-03"},{"$f":"WORKDAY(AO10,1,Лист1!$A$1:$A$28)","v":"2017-10-04"},{"$f":"WORKDAY(AP10,1,Лист1!$A$1:$A$28)","v":"2017-10-05"}]
["п83922","ОО8","ФКГП 185.00.00.000","К-т подвесок для вагона модели 61-4440",null,null,null,null,null,{"$f":"SUM(F11:I11)","v":0},{"$f":"SUM(O11:AQ11)","v":5},{"$f":"SUMPRODUCT(Сентябрь!$O11:$AP11*(Сентябрь!$O$10:$AP$10<=DATE($N$9,MONTH(1&$M$9),$L$9)))","v":5},{"$f":"SUMPRODUCT($O11:$AQ11*($O$10:$AQ$10<=DATE($N$9,MONTH(1&$M$9),$L$9)))","v":5},{"$f":"M11-L11","v":0},null,null,null,5]
[null,"ОО8","ФКГП 282.01.00.000","Подвеска",1,null,null,null,null,{"$f":"SUM(F12:I12)","v":0},{"$f":"SUM(O12:AQ12)","v":0},{"$f":"SUMPRODUCT(Сентябрь!$O12:$AP12*(Сентябрь!$O$10:$AP$10<=DATE($N$9,MONTH(1&$M$9),$L$9)))","v":0},{"$f":"SUMPRODUCT($O12:$AQ12*($O$10:$AQ$10<=DATE($N$9,MONTH(1&$M$9),$L$9)))","v":0},{"$f":"M12-L12","v":0}]
[null,"ОО8","ФКГП 301.01.00.000","Подвеска",8,null,null,null,null,0,3,{"$f":"SUMPRODUCT(Сентябрь!$O13:$AP13*(Сентябрь!$O$10:$AP$10<=DATE($N$9,MONTH(1&$M$9),$L$9)))","v":3},3,0,null,null,null,3]
[null,"ОО8","ФКГП 312.01.00.000","Подвеска",1,null,null,null,null,0,0,{"$f":"SUMPRODUCT(Сентябрь!$O14:$AP14*(Сентябрь!$O$10:$AP$10<=DATE($N$9,MONTH(1&$M$9),$L$9)))","v":0},0,0]
[null,"ОО8","ФКГП 356.01.00.000","Подвеска",2,null,null,null,null,0,2,{"$f":"SUMPRODUCT(Сентябрь!$O15:$AP15*(Сентябрь!$O$10:$AP$10<=DATE($N$9,MONTH(1&$M$9),$L$9)))","v":2},2,0,null,null,null,2]
["п84549","ОО8","ФКГП 185.00.00.000-02","К-т подвесок для вагона модели 61-4445.01",null,null,null,null,null,0,0,{"$f":"SUMPRODUCT(Сентябрь!$O16:$AP16*(Сентябрь!$O$10:$AP$10<=DATE($N$9,MONTH(1&$M$9),$L$9)))","v":0},0,0]
[null,"ОО8","ФКГП 282.01.00.000","Подвеска",1,null,null,null,null,0,0,{"$f":"SUMPRODUCT(Сентябрь!$O17:$AP17*(Сентябрь!$O$10:$AP$10<=DATE($N$9,MONTH(1&$M$9),$L$9)))","v":0},0,0]
["п81393","ОО8","ФКГП 301.01.00.000","Подвеска",6,null,null,null,null,0,0,{"$f":"SUMPRODUCT(Сентябрь!$O18:$AP18*(Сентябрь!$O$10:$AP$10<=DATE($N$9,MONTH(1&$M$9),$L$9)))","v":0},0,0]
[null,"ОО8","ФКГП 331.01.00.000","Подвеска",1,null,null,null,null,0,0,{"$f":"SUMPRODUCT(Сентябрь!$O19:$AP19*(Сентябрь!$O$10:$AP$10<=DATE($N$9,MONTH(1&$M$9),$L$9)))","v":0},0,0]
[null,"ОО8","ФКГП 332.01.00.000","Подвеска",1,null,null,null,null,0,0,{"$f":"SUMPRODUCT(Сентябрь!$O20:$AP20*(Сентябрь!$O$10:$AP$10<=DATE($N$9,MONTH(1&$M$9),$L$9)))","v":0},0,0]
[null,"ОО8","ФКГП 333.01.00.000","Подвеска",1,null,null,null,null,0,0,{"$f":"SUMPRODUCT(Сентябрь!$O21:$AP21*(Сентябрь!$O$10:$AP$10<=DATE($N$9,MONTH(1&$M$9),$L$9)))","v":0},0,0]
[null,"ОО8","ФКГП 334.01.00.000","Подвеска",1,null,null,null,null,0,0,{"$f":"SUMPRODUCT(Сентябрь!$O22:$AP22*(Сентябрь!$O$10:$AP$10<=DATE($N$9,MONTH(1&$M$9),$L$9)))","v":0},0,0]
[null,"ОО8","ФКГП 335.01.00.000","Подвеска",1,null,null,null,null,0,0,{"$f":"SUMPRODUCT(Сентябрь!$O23:$AP23*(Сентябрь!$O$10:$AP$10<=DATE($N$9,MONTH(1&$M$9),$L$9)))","v":0},0,0]
["п84099","ОО8","ФКГП 185.00.00.000-03","К-т подвесок для вагона модели 61-4447.05",null,null,null,null,null,0,0,{"$f":"SUMPRODUCT(Сентябрь!$O24:$AP24*(Сентябрь!$O$10:$AP$10<=DATE($N$9,MONTH(1&$M$9),$L$9)))","v":0},0,0]
[null,"ОО8","ФКГП 282.01.00.000","Подвеска",1,null,null,null,null,0,0,{"$f":"SUMPRODUCT(Сентябрь!$O25:$AP25*(Сентябрь!$O$10:$AP$10<=DATE($N$9,MONTH(1&$M$9),$L$9)))","v":0},0,0]
[null,"ОО8","ФКГП 334.01.00.000","Подвеска",1,null,null,null,null,0,0,{"$f":"SUMPRODUCT(Сентябрь!$O26:$AP26*(Сентябрь!$O$10:$AP$10<=DATE($N$9,MONTH(1&$M$9),$L$9)))","v":0},0,0]
[null,"ОО8","ФКГП 335.01.00.000","Подвеска",1,null,null,null,null,0,0,{"$f":"SUMPRODUCT(Сентябрь!$O27:$AP27*(Сентябрь!$O$10:$AP$10<=DATE($N$9,MONTH(1&$M$9),$L$9)))","v":0},0,0]
["п83969","ОО8","ФКГП 185.00.00.000-05","К-т подвесок для вагона модели 61-4465",null,null,null,null,null,0,0,{"$f":"SUMPRODUCT(Сентябрь!$O28:$AP28*(Сентябрь!$O$10:$AP$10<=DATE($N$9,MONTH(1&$M$9),$L$9)))","v":0},0,0]
["п81393","ОО8","ФКГП 301.01.00.000","Подвеска",14,null,null,null,null,{"$f":"SUM(F29:I29)","v":0},{"$f":"SUM(O29:AQ29)","v":0},{"$f":"SUMPRODUCT(Сентябрь!$O29:$AP29*(Сентябрь!$O$10:$AP$10<=DATE($N$9,MONTH(1&$M$9),$L$9)))","v":0},{"$f":"SUMPRODUCT($O29:$AQ29*($O$10:$AQ$10<=DATE($N$9,MONTH(1&$M$9),$L$9)))","v":0},{"$f":"M29-L29","v":0}]
[null,"ОО8","ФКГП 336.01.00.000-01","Подвеска",1,null,null,null,null,0,0,{"$f":"SUMPRODUCT(Сентябрь!$O30:$AP30*(Сентябрь!$O$10:$AP$10<=DATE($N$9,MONTH(1&$M$9),$L$9)))","v":0},0,0]
[null,"ОО8","ФКГП 355.01.00.000","Подвеска",2,null,null,null,null,0,0,{"$f":"SUMPRODUCT(Сентябрь!$O31:$AP31*(Сентябрь!$O$10:$AP$10<=DATE($N$9,MONTH(1&$M$9),$L$9)))","v":0},0,0]
[null,"ОО8","ФКГП 464.01.00.000","Подвеска",1,null,null,null,null,0,0,{"$f":"SUMPRODUCT(Сентябрь!$O32:$AP32*(Сентябрь!$O$10:$AP$10<=DATE($N$9,MONTH(1&$M$9),$L$9)))","v":0},0,0]
["п83967","ОО8","ФКГП 185.00.00.000-07","К-т подвесок для вагона модели 61-4472",null,null,null,null,null,0,0,{"$f":"SUMPRODUCT(Сентябрь!$O33:$AP33*(Сентябрь!$O$10:$AP$10<=DATE($N$9,MONTH(1&$M$9),$L$9)))","v":0},0,0]
["п81393","ОО8","ФКГП 301.01.00.000","Подвеска",11,null,null,null,null,0,0,{"$f":"SUMPRODUCT(Сентябрь!$O34:$AP34*(Сентябрь!$O$10:$AP$10<=DATE($N$9,MONTH(1&$M$9),$L$9)))","v":0},0,0]

{"sheet":"Лист1","index":2,"n_rows":28,"n_cols":18,"rows_kept":28,"cut":false,"hidden":true,"merged":[]}
["2017-01-01",null,null,"Январь","2017-01-01"]
["2017-01-02",null,null,"Февраль","2017-02-01",null,null,null,null,null,null,null,{"$f":"(COLUMN(A1)-1)/5","v":0},{"$f":"(COLUMN(B1)-1)/5","v":0.2},0.4,0.6,0.8,{"$f":"(COLUMN(F1)-1)/5","v":1}]
["2017-01-03",null,null,"Март","2017-03-01"]
["2017-01-04",null,null,"Апрель","2017-04-01"]
["2017-01-05",null,null,"Май","2017-05-01"]
["2017-01-06",null,null,"Июнь","2017-06-01"]
["2017-01-07",null,null,"Июль","2017-07-01"]
["2017-01-08",null,null,"Август","2017-08-01"]
["2017-02-23",null,null,"Сентябрь","2017-09-01"]
["2017-02-24",null,null,"Октябрь","2017-10-01"]
["2017-02-25",null,null,"Ноябрь","2017-11-01"]
["2017-02-26",null,null,"Декабрь","2017-12-01"]
["2017-03-08",null,null,null,"2018-01-01"]
["2017-04-29",null,null,null,"2018-02-01"]
["2017-04-30",null,null,null,"2018-03-01"]
["2017-05-01",null,null,null,"2018-04-01"]
["2017-05-06",null,null,null,"2018-05-01"]
["2017-05-07",null,null,null,"2018-06-01"]
["2017-05-08",null,null,null,"2018-07-01"]
["2017-05-09",null,null,null,"2018-08-01"]
["2017-06-10",null,null,null,"2018-09-01"]
["2017-06-11",null,null,null,"2018-10-01"]
["2017-06-12",null,null,null,"2018-11-01"]
["2017-11-04",null,null,null,"2018-12-01"]
["2017-11-05"]
["2017-11-06"]
["2017-12-30"]
["2017-12-31"]

{"sheet":"Лист2","index":3,"n_rows":102,"n_cols":30,"rows_kept":102,"cut":false,"hidden":true,"merged":[]}
[]
[null,null,null,null,null,null,null,"Сварка коробок "]
[]
[null,null,null,"ост","план",null,null,null,null,null,null,null,null,null,null,null,null,null,null,null,null,null,null,null,null,null,null,null,"ост","план"]
[null,null,"Наименование","2017-02-01","фев","2017-02-01","2017-02-02","2017-02-03","2017-02-06","2017-02-07","2017-02-08","2017-02-09","2017-02-10","2017-02-13","2017-02-14","2017-02-15","2017-02-16","2017-02-17","2017-02-20","2017-02-21","2017-02-22","2017-02-23","2017-02-24","2017-02-27","2017-02-28",null,null,null,"2017-03-01","март"]
[null,"ЭС04-1 Новокрестовская","станция",null,"колич"]
["306180.","Зона М","Новокрестовская",null,12]
[null,"Металлоконструкция зоны М","Новокрестовская",null,12]
[null,"Ограждение зоны М","Новокрестовская",null,12]
[null,"Плиты перекрытия зоны М ","Новокрестовская",null,12]
[null,"Поручневое устройство зоны М ","Новокрестовская",null,12]
[null,"Блокировка СТОП в проходе ","Новокрестовская",null,12]
[null,"Блокировка СТОП в проходе ","Новокрестовская",null,12]
[null,"Установка блокировки скорости и направления движения","Новокрестовская",null,12,null,null,null,null,null,{"$f":"F5","v":"2017-02-01"},{"$f":"K14/7+7","v":6116.5714285714284},{"$f":"\"1/1\"-WEEKDAY(\"1/1\",12)+7","v":42737},{"$f":"K14+MOD(2-K14,7)-7","v":"2017-01-30"}]
[null,"Блокировка опускания ступени ","Новокрестовская",null,12,null,null,null,null,null,1,{"$f":"K15/7+7","v":7.1428571428571432}]
[null,"Блокировка основного бегунка ","Новокрестовская",null,12,null,null,null,null,null,2,7.2857142857142856]
[null,"Блокировка вспомогательного бегунка","Новокрестовская",null,12,null,null,null,null,null,3,7.4285714285714288]
[null,"Блокировка обрыва и остановки поручня ","Новокрестовская",null,12,null,null,null,null,null,4,7.5714285714285712]
[null,"Блокировка устья поручня ","Новокрестовская",null,12,null,null,null,null,null,5,7.7142857142857144]
[null,"Диагностика разгружающей шины раб.ветви ","Новокрестовская",null,12,null,null,null,null,null,6,7.8571428571428568]
[null,"Диагностика разгружающей шины хол.ветви","Новокрестовская",null,12,null,null,null,null,null,7,8]
[null,"Блокировка плит перекрытия ","Новокрестовская",null,12]
[null,"Блокировка приводной цепи ","Новокрестовская",null,12]
[null,"Блокировка схода поручня ","Новокрестовская",null,12]
[null,"Главный вал в сборе с авариным тормозом ","Новокрестовская",null,12]
[null,"Площадка входная ","Новокрестовская",null,12]
[null,"Ступень","Новокрестовская",null,12]
[null,"Направляющие зоны М ","Новокрестовская",null,12]
["61.","заготовит. М","Новокрестовская",null,12]
["80.","сварочн. М","Новокрестовская",null,12]
["30.","сбороч. М","Новокрестовская",null,12]
["306180.","Зона А","Новокрестовская",null,12]
[null,"Натяжное устройство ","Новокрестовская",null,12]
[null,"Направляющие зоны А ","Новокрестовская",null,12]
[null,"Площадка входная ","Новокрестовская",null,12]
[null,"Плиты перекрытия зона А ","Новокрестовская",null,12]
[null,"Поручневое устройство зоны А ","Новокрестовская",null,12]
[null,"Металлоконструкция зоны А ","Новокрестовская",null,12]
[null,"Блокировка устья поручня ","Новокрестовская",null,12]
[null,"Блокировка плит перекрытия ","Новокрестовская",null,12]
[null,"Блокировка подъема ступени ","Новокрестовская",null,12]
[null,"Блокировка схода поручня ","Новокрестовская",null,12]
[null,"Люк откидной ","Новокрестовская",null,12]
["61.","заготовит.А","Новокрестовская",null,12]
["80.","сварочн. А","Новокрестовская",null,12]
["30.","сбороч. А","Новокрестовская",null,12]
["306180.","Зона Б","Новокрестовская",null,12]
[null,"Металлоконструкция зоны Б 1","Новокрестовская",null,12]
[null,"Направляющая зоны Б 1","Новокрестовская",null,12]
[null,"Поручневое устройство зоны Б 1","Новокрестовская",null,12]
[null,"Блокировка опускания ступени ","Новокрестовская",null,12]
["61.","заготовит. Б","Новокрестовская",null,12]
["80.","сварочн. Б","Новокрестовская",null,12]
["306180.","Зона Б05","Новокрестовская",null,12]
[null,"Металлоконструкция зоны Б 05","Новокрестовская",null,12]
[null,"Направляющая зоны Б 05","Новокрестовская",null,12]
[null,"Поручневое устройство зоны Б 05","Новокрестовская",null,12]
["61.","заготовит.Б05","Новокрестовская",null,12]
["80.","сварочн.Б05","Новокрестовская",null,12]
["30.","общая сборка1","Новокрестовская",null,12]
[null,"общая сборка2","Новокрестовская",null,12]
[null,"общая сборка3","Новокрестовская",null,12]
[null,"ЭС04-1 Савушкина","Савушкина",null,6]
["306180.","Зона М","Савушкина",null,6]
[null,"Главный вал в сборе с авариным тормозом ","Савушкина",null,6]
[null,"Площадка входная ","Савушкина",null,6]
[null,"Ступень","Савушкина",null,6]
[null,"Направляющие зоны М ","Савушкина",null,6]
["61.","заготовит. М","Савушкина",null,6]
["80.","сварочн. М","Савушкина",null,6]
["30.","сбороч. М","Савушкина",null,6]
["306180.","Зона А","Савушкина",null,6]
[null,"Натяжное устройство ","Савушкина",null,6]
[null,"Направляющие зоны А ","Савушкина",null,6]
[null,"Площадка входная ","Савушкина",null,6]
[null,"Плиты перекрытия зона А ","Савушкина",null,6]
[null,"Поручневое устройство зоны А ","Савушкина",null,6]
[null,"Металлоконструкция зоны А ","Савушкина",null,6]
[null,"Блокировка устья поручня ","Савушкина",null,6]
[null,"Блокировка плит перекрытия ","Савушкина",null,6]
[null,"Блокировка подъема ступени ","Савушкина",null,6]
[null,"Блокировка схода поручня ","Савушкина",null,6]
[null,"Люк откидной ","Савушкина",null,6]
["61.","заготовит.А","Савушкина",null,6]
["80.","сварочн.А","Савушкина",null,6]
["30.","сбороч.А","Савушкина",null,6]
["306180.","Зона Б","Савушкина",null,6]
[null,"Металлоконструкция зоны Б 1","Савушкина",null,6]
[null,"Направляющая зоны Б 1","Савушкина",null,6]
[null,"Поручневое устройство зоны Б 1","Савушкина",null,6]
[null,"Блокировка опускания ступени ","Савушкина",null,6]
["61.","заготовит.Б","Савушкина",null,6]
["80.","сварочн.Б","Савушкина",null,6]
["306180.","Зона Б05","Савушкина",null,6]
[null,"Металлоконструкция зоны Б 05","Савушкина",null,6]
[null,"Направляющая зоны Б 05","Савушкина",null,6]
[null,"Поручневое устройство зоны Б 05","Савушкина",null,6]
["61.","заготовит.Б05","Савушкина",null,6]
["80.","сварочн.Б05","Савушкина",null,6]
["30.","общая сборка","Савушкина"]
["сварочн.Б05","Савушкина",null,6]
["общая сборка","Савушкина"]